[Event "*** Titled Tuesday Blitz"]
[Site "Chess.com"]
[Date "2020.02.04"]
[Round "4"]
[White "gemarin"]
[Black "victormago"]
[Result "0-1"]
[WhiteElo "2093"]
[BlackElo "2423"]
[TimeControl "180+2"]
[EndTime "13:48:42 PST"]
[Termination "victormago won on time"]

1. d4 {[%clk 0:01:06.7]} 1... Nf6 {[%clk 0:02:59.1]} 2. c4 {[%clk 0:01:07.9]}
2... c5 {[%clk 0:02:59.9]} 3. d5 {[%clk 0:01:08.5]} 3... e6 {[%clk 0:03:01]} 4.
Nc3 {[%clk 0:01:08.4]} 4... exd5 {[%clk 0:03:02.1]} 5. cxd5 {[%clk 0:01:09.9]}
5... d6 {[%clk 0:03:03.8]} 6. e4 {[%clk 0:01:11.3]} 6... g6 {[%clk 0:03:04.9]}
7. h3 {[%clk 0:01:12.2]} 7... Bg7 {[%clk 0:03:06]} 8. Nf3 {[%clk 0:01:11.7]}
8... O-O {[%clk 0:03:05.9]} 9. Be2 {[%clk 0:01:13]} 9... a6 {[%clk 0:03:07.1]}
10. a4 {[%clk 0:01:12.9]} 10... Nbd7 {[%clk 0:03:08.1]} 11. O-O {[%clk
0:01:13.2]} 11... Nh5 {[%clk 0:03:09.2]} 12. Bg5 {[%clk 0:01:09]} 12... Bf6
{[%clk 0:03:09.5]} 13. Bh6 {[%clk 0:01:08.4]} 13... Ng7 {[%clk 0:03:08.2]} 14.
Bf4 {[%clk 0:01:03.4]} 14... Qe7 {[%clk 0:03:08]} 15. Re1 {[%clk 0:00:58.9]}
15... Re8 {[%clk 0:03:04.8]} 16. Bf1 {[%clk 0:00:56]} 16... Nh5 {[%clk
0:03:04.7]} 17. Bh2 {[%clk 0:00:56.2]} 17... Ne5 {[%clk 0:03:04.9]} 18. Nxe5
{[%clk 0:00:53.4]} 18... Bxe5 {[%clk 0:03:06]} 19. Bxe5 {[%clk 0:00:49.9]} 19...
Qxe5 {[%clk 0:03:07.9]} 20. g3 {[%clk 0:00:47.8]} 20... Bd7 {[%clk 0:02:47.2]}
21. a5 {[%clk 0:00:44.5]} 21... Re7 {[%clk 0:02:38.7]} 22. Bg2 {[%clk
0:00:44.6]} 22... Rae8 {[%clk 0:02:37.7]} 23. Kh2 {[%clk 0:00:40.9]} 23... Qg7
{[%clk 0:02:31.2]} 24. Qb3 {[%clk 0:00:36.6]} 24... Bc8 {[%clk 0:02:29.1]} 25.
Re3 {[%clk 0:00:31.2]} 25... f5 {[%clk 0:02:23.3]} 26. exf5 {[%clk 0:00:15]}
26... Rxe3 {[%clk 0:02:23.4]} 27. fxe3 {[%clk 0:00:15.5]} 27... Rxe3 {[%clk
0:02:21.9]} 28. Qb6 {[%clk 0:00:12.9]} 28... Qe7 {[%clk 0:02:10.2]} 29. fxg6
{[%clk 0:00:10]} 29... hxg6 {[%clk 0:02:12.1]} 30. Rf1 {[%clk 0:00:08.3]} 30...
Nxg3 {[%clk 0:02:08.3]} 0-1

[Event "*** Titled Tuesday Blitz"]
[Site "Chess.com"]
[Date "2020.02.04"]
[Round "4"]
[White "Majkelopulos"]
[Black "cottage_cheese"]
[Result "1-0"]
[WhiteElo "2491"]
[BlackElo "2279"]
[TimeControl "180+2"]
[EndTime "13:49:11 PST"]
[Termination "Majkelopulos won by resignation"]

1. e4 {[%clk 0:03:01.9]} 1... e5 {[%clk 0:03:00.1]} 2. Nc3 {[%clk 0:03:02.2]}
2... Nf6 {[%clk 0:03:00.2]} 3. g3 {[%clk 0:03:03.7]} 3... Nc6 {[%clk 0:02:58.6]}
4. Bg2 {[%clk 0:03:03.1]} 4... Bc5 {[%clk 0:02:59.2]} 5. Nge2 {[%clk 0:03:04.4]}
5... O-O {[%clk 0:02:48.7]} 6. O-O {[%clk 0:03:05.4]} 6... a6 {[%clk 0:02:43.7]}
7. h3 {[%clk 0:03:06.6]} 7... d6 {[%clk 0:02:44.2]} 8. d3 {[%clk 0:03:08.1]}
8... h6 {[%clk 0:02:30.3]} 9. Kh2 {[%clk 0:03:08.3]} 9... Nd4 {[%clk 0:01:42.9]}
10. f4 {[%clk 0:03:01.7]} 10... exf4 {[%clk 0:01:24.5]} 11. Bxf4 {[%clk
0:02:59.7]} 11... Re8 {[%clk 0:01:23.1]} 12. Qd2 {[%clk 0:02:56.8]} 12... Nxe2
{[%clk 0:01:22.7]} 13. Nxe2 {[%clk 0:02:57.4]} 13... Nh7 {[%clk 0:01:09.4]} 14.
d4 {[%clk 0:02:57]} 14... Bb6 {[%clk 0:01:07.7]} 15. Rf2 {[%clk 0:02:49.4]}
15... c6 {[%clk 0:00:47.9]} 16. Raf1 {[%clk 0:02:49.9]} 16... f5 {[%clk
0:00:31.7]} 17. exf5 {[%clk 0:02:39.5]} 17... Bxf5 {[%clk 0:00:26.6]} 18. Bxh6
{[%clk 0:02:38.6]} 18... Bxh3 {[%clk 0:00:21.3]} 19. Bxh3 {[%clk 0:02:37.6]}
19... gxh6 {[%clk 0:00:20.1]} 20. Qxh6 {[%clk 0:02:39.1]} 20... Qg5 {[%clk
0:00:18.7]} 21. Qxd6 {[%clk 0:02:23.3]} 21... Rad8 {[%clk 0:00:16]} 22. Qf4
{[%clk 0:02:10.4]} 22... Qh5 {[%clk 0:00:14.8]} 23. Qg4+ {[%clk 0:01:58.9]}
23... Qxg4 {[%clk 0:00:14.4]} 24. Bxg4 {[%clk 0:02:00.8]} 24... Bxd4 {[%clk
0:00:12.2]} 25. Nxd4 {[%clk 0:02:01.6]} 25... Rxd4 {[%clk 0:00:12.8]} 26. Bh5
{[%clk 0:02:02.7]} 26... Re5 {[%clk 0:00:10.9]} 27. Bg6 {[%clk 0:01:58.7]} 27...
Ng5 {[%clk 0:00:11.5]} 28. Bd3 {[%clk 0:01:58.6]} 28... Rd6 {[%clk 0:00:08.4]}
29. Rf8+ {[%clk 0:01:58.5]} 29... Kg7 {[%clk 0:00:09]} 30. Rb8 {[%clk
0:02:00.2]} 30... Re7 {[%clk 0:00:08.9]} 31. Kg2 {[%clk 0:02:00.4]} 31... Ne6
{[%clk 0:00:07.8]} 32. Rh1 {[%clk 0:01:59.7]} 32... Nc5 {[%clk 0:00:07.6]} 33.
Rh7+ {[%clk 0:02:00.5]} 33... Kf6 {[%clk 0:00:08]} 34. Rf8+ {[%clk 0:02:01]}
34... Ke6 {[%clk 0:00:08.5]} 35. Bf5+ {[%clk 0:01:58.1]} 1-0

[Event "*** Titled Tuesday Blitz"]
[Site "Chess.com"]
[Date "2020.02.04"]
[Round "4"]
[White "AnnaChessLook"]
[Black "XiaoKangZhong"]
[Result "0-1"]
[WhiteElo "2246"]
[BlackElo "2350"]
[TimeControl "180+2"]
[EndTime "13:49:20 PST"]
[Termination "XiaoKangZhong won by resignation"]

1. Nf3 {[%clk 0:02:58.6]} 1... Nf6 {[%clk 0:03:00.4]} 2. g3 {[%clk 0:02:58.5]}
2... g6 {[%clk 0:03:02.1]} 3. Bg2 {[%clk 0:02:59.1]} 3... Bg7 {[%clk 0:03:04]}
4. O-O {[%clk 0:02:59.8]} 4... O-O {[%clk 0:03:05.9]} 5. c4 {[%clk 0:03:00.6]}
5... c5 {[%clk 0:03:02.9]} 6. Nc3 {[%clk 0:03:01.2]} 6... Nc6 {[%clk 0:03:03.3]}
7. d3 {[%clk 0:02:57.3]} 7... d5 {[%clk 0:03:03.4]} 8. cxd5 {[%clk 0:02:56.9]}
8... Nxd5 {[%clk 0:03:04.4]} 9. Qa4 {[%clk 0:02:56.6]} 9... Nc7 {[%clk
0:02:55.3]} 10. Qh4 {[%clk 0:02:49.6]} 10... Nd4 {[%clk 0:02:51.5]} 11. Nxd4
{[%clk 0:02:20.8]} 11... cxd4 {[%clk 0:02:51]} 12. Ne4 {[%clk 0:02:21.6]} 12...
Nd5 {[%clk 0:02:38.6]} 13. Bg5 {[%clk 0:02:07.4]} 13... f6 {[%clk 0:02:34.3]}
14. Bh6 {[%clk 0:01:56.5]} 14... Bf5 {[%clk 0:01:45.5]} 15. Bxg7 {[%clk
0:00:56.3]} 15... Kxg7 {[%clk 0:01:43.4]} 16. Rac1 {[%clk 0:00:48.3]} 16... Rc8
{[%clk 0:01:40.3]} 17. a3 {[%clk 0:00:43.2]} 17... Rxc1 {[%clk 0:01:26.9]} 18.
Rxc1 {[%clk 0:00:42.9]} 18... g5 {[%clk 0:01:27.9]} 19. Nxg5 {[%clk 0:00:42.8]}
19... fxg5 {[%clk 0:01:28.5]} 20. Qxg5+ {[%clk 0:00:44.7]} 20... Kh8 {[%clk
0:01:30]} 21. Rc5 {[%clk 0:00:39.5]} 21... e6 {[%clk 0:01:29.1]} 22. Qh6 {[%clk
0:00:28.8]} 22... Rf6 {[%clk 0:00:50.4]} 23. Rxd5 {[%clk 0:00:20.6]} 23... exd5
{[%clk 0:00:48.4]} 24. Qg5 {[%clk 0:00:16.9]} 24... Rf8 {[%clk 0:00:45.5]} 25.
g4 {[%clk 0:00:16.7]} 25... Qxg5 {[%clk 0:00:45.9]} 0-1

[Event "*** Titled Tuesday Blitz"]
[Site "Chess.com"]
[Date "2020.02.04"]
[Round "4"]
[White "Gusarov91"]
[Black "Shant_Sargsyan"]
[Result "0-1"]
[WhiteElo "2620"]
[BlackElo "2989"]
[TimeControl "180+2"]
[EndTime "13:49:26 PST"]
[Termination "Shant_Sargsyan won by resignation"]

1. d4 {[%clk 0:03:01.9]} 1... Nf6 {[%clk 0:03:00.7]} 2. Nf3 {[%clk 0:03:02.9]}
2... d5 {[%clk 0:03:02.1]} 3. c4 {[%clk 0:03:03.7]} 3... e6 {[%clk 0:03:03.4]}
4. Nc3 {[%clk 0:03:03.6]} 4... Bb4 {[%clk 0:03:04.3]} 5. Bg5 {[%clk 0:03:03.5]}
5... dxc4 {[%clk 0:03:04.8]} 6. e3 {[%clk 0:03:02.3]} 6... b5 {[%clk 0:03:05.6]}
7. a3 {[%clk 0:03:00]} 7... Bxc3+ {[%clk 0:03:06.5]} 8. bxc3 {[%clk 0:03:01]}
8... a6 {[%clk 0:03:05.5]} 9. a4 {[%clk 0:03:01.5]} 9... c6 {[%clk 0:03:06]} 10.
Qb1 {[%clk 0:02:57.6]} 10... Nbd7 {[%clk 0:03:02.1]} 11. Be2 {[%clk 0:02:55.6]}
11... h6 {[%clk 0:03:02.7]} 12. Bh4 {[%clk 0:02:56.2]} 12... Nb6 {[%clk
0:02:57.4]} 13. Ne5 {[%clk 0:02:48.8]} 13... Nxa4 {[%clk 0:02:43.7]} 14. Nxc6
{[%clk 0:02:44.5]} 14... Qc7 {[%clk 0:02:39.4]} 15. Bf3 {[%clk 0:02:37]} 15...
Bb7 {[%clk 0:02:37.1]} 16. Bg3 {[%clk 0:02:32.5]} 16... Qc8 {[%clk 0:02:38.2]}
17. Rxa4 {[%clk 0:02:19.8]} 17... Bxc6 {[%clk 0:02:36.3]} 18. Ra2 {[%clk
0:02:10]} 18... O-O {[%clk 0:02:36.4]} 19. e4 {[%clk 0:02:08.3]} 19... Qb7
{[%clk 0:02:34.3]} 20. Re2 {[%clk 0:02:09.3]} 20... a5 {[%clk 0:02:25.6]} 21.
O-O {[%clk 0:02:07.9]} 21... b4 {[%clk 0:02:20.6]} 22. cxb4 {[%clk 0:02:07.6]}
22... axb4 {[%clk 0:02:21.6]} 23. Bd6 {[%clk 0:02:08.5]} 23... b3 {[%clk
0:02:20.1]} 24. Bxf8 {[%clk 0:01:59.8]} 24... Rxf8 {[%clk 0:02:22]} 25. Rc1
{[%clk 0:02:00.9]} 25... Bb5 {[%clk 0:02:20.6]} 26. d5 {[%clk 0:01:50.8]} 26...
exd5 {[%clk 0:02:18.5]} 27. exd5 {[%clk 0:01:51.4]} 27... Qb8 {[%clk 0:02:07.2]}
28. Rd2 {[%clk 0:01:43.2]} 28... Qf4 {[%clk 0:02:00.1]} 29. Qb2 {[%clk
0:01:40.2]} 29... Ra8 {[%clk 0:01:58.4]} 30. Rd4 {[%clk 0:01:36]} 30... Qe5
{[%clk 0:01:55.1]} 31. d6 {[%clk 0:01:30.4]} 31... Ra2 {[%clk 0:01:41]} 32. Qc3
{[%clk 0:01:31.5]} 32... Rc2 {[%clk 0:01:34.3]} 33. Rxc2 {[%clk 0:01:29]} 33...
bxc2 {[%clk 0:01:36.2]} 34. Rxc4 {[%clk 0:00:19.4]} 34... Bxc4 {[%clk 0:01:38]}
0-1

[Event "*** Titled Tuesday Blitz"]
[Site "Chess.com"]
[Date "2020.02.04"]
[Round "4"]
[White "Chessalary"]
[Black "AliKa2810"]
[Result "0-1"]
[WhiteElo "2185"]
[BlackElo "2629"]
[TimeControl "180+2"]
[EndTime "13:49:30 PST"]
[Termination "AliKa2810 won by resignation"]

1. e4 {[%clk 0:03:01.2]} 1... c6 {[%clk 0:02:59.9]} 2. d4 {[%clk 0:02:57.3]}
2... d5 {[%clk 0:03:01.3]} 3. Nd2 {[%clk 0:02:57.2]} 3... dxe4 {[%clk
0:03:01.9]} 4. Nxe4 {[%clk 0:02:57.7]} 4... Nd7 {[%clk 0:03:02.7]} 5. Nf3 {[%clk
0:02:56]} 5... Ngf6 {[%clk 0:03:02.6]} 6. Ng3 {[%clk 0:02:56.3]} 6... e6 {[%clk
0:03:02.2]} 7. Bd3 {[%clk 0:02:54.5]} 7... c5 {[%clk 0:03:00.4]} 8. O-O {[%clk
0:02:51.6]} 8... cxd4 {[%clk 0:03:00.3]} 9. Nxd4 {[%clk 0:02:53.5]} 9... Bc5
{[%clk 0:03:01.2]} 10. Nb3 {[%clk 0:02:38.3]} 10... Bb6 {[%clk 0:02:53.9]} 11.
Bg5 {[%clk 0:02:32.5]} 11... O-O {[%clk 0:02:47.2]} 12. Ne4 {[%clk 0:02:23.8]}
12... h6 {[%clk 0:02:48.1]} 13. Bh4 {[%clk 0:02:23.1]} 13... g5 {[%clk
0:02:44.4]} 14. Bg3 {[%clk 0:01:35.3]} 14... Nxe4 {[%clk 0:02:45]} 15. Bxe4
{[%clk 0:01:33.3]} 15... f5 {[%clk 0:02:46.1]} 16. Qh5 {[%clk 0:01:32]} 16...
Qf6 {[%clk 0:02:44.3]} 17. Bd6 {[%clk 0:01:01.5]} 17... fxe4 {[%clk 0:02:44.2]}
18. Bxf8 {[%clk 0:01:02.2]} 18... Nxf8 {[%clk 0:02:45.8]} 19. Rad1 {[%clk
0:00:59.2]} 19... Bd7 {[%clk 0:02:44.9]} 20. Nd2 {[%clk 0:00:50.5]} 20... Bc6
{[%clk 0:02:42.6]} 21. Rde1 {[%clk 0:00:44]} 21... Rd8 {[%clk 0:02:22.2]} 22.
Nxe4 {[%clk 0:00:39.4]} 22... Bxe4 {[%clk 0:02:03.9]} 23. Rxe4 {[%clk
0:00:41.3]} 23... Rd2 {[%clk 0:02:05.3]} 24. Re2 {[%clk 0:00:30]} 24... Rxe2
{[%clk 0:02:06.2]} 25. Qxe2 {[%clk 0:00:31.9]} 25... Qxb2 {[%clk 0:02:07.3]} 26.
Qe4 {[%clk 0:00:27.7]} 26... Qxa2 {[%clk 0:02:03.8]} 27. Kh1 {[%clk 0:00:28.2]}
27... Qd5 {[%clk 0:02:01.3]} 28. Qg4 {[%clk 0:00:29]} 28... Qf5 {[%clk
0:01:51.3]} 29. Qh5 {[%clk 0:00:29.7]} 29... Kg7 {[%clk 0:01:48.8]} 30. h4
{[%clk 0:00:17.8]} 30... g4 {[%clk 0:01:45.9]} 31. Qe8 {[%clk 0:00:16.8]} 31...
g3 {[%clk 0:01:35.9]} 32. Qd7+ {[%clk 0:00:08.7]} 32... Nxd7 {[%clk 0:01:35.6]}
0-1

[Event "*** Titled Tuesday Blitz"]
[Site "Chess.com"]
[Date "2020.02.04"]
[Round "4"]
[White "Jahonas"]
[Black "DiamondCrusher22"]
[Result "1/2-1/2"]
[WhiteElo "2390"]
[BlackElo "2011"]
[TimeControl "180+2"]
[EndTime "13:49:37 PST"]
[Termination "Game drawn by repetition"]

1. e4 {[%clk 0:03:01.9]} 1... e5 {[%clk 0:02:59]} 2. Nf3 {[%clk 0:03:02.6]} 2...
Nc6 {[%clk 0:02:59.3]} 3. Bc4 {[%clk 0:03:03.3]} 3... Nf6 {[%clk 0:02:59.5]} 4.
d3 {[%clk 0:03:03.6]} 4... Bc5 {[%clk 0:02:59.7]} 5. O-O {[%clk 0:03:04.3]} 5...
d5 {[%clk 0:02:59.4]} 6. exd5 {[%clk 0:03:04.9]} 6... Nxd5 {[%clk 0:03:00]} 7.
h3 {[%clk 0:03:03.4]} 7... O-O {[%clk 0:03:00.1]} 8. Nc3 {[%clk 0:03:00.3]} 8...
Nxc3 {[%clk 0:02:55.2]} 9. bxc3 {[%clk 0:03:02.2]} 9... h6 {[%clk 0:02:55.2]}
10. Qe2 {[%clk 0:03:02.5]} 10... Qf6 {[%clk 0:02:55.3]} 11. Nd2 {[%clk
0:02:56.4]} 11... Bf5 {[%clk 0:02:50.7]} 12. Ne4 {[%clk 0:02:56.8]} 12... Bxe4
{[%clk 0:02:50.2]} 13. Qxe4 {[%clk 0:02:56.6]} 13... Na5 {[%clk 0:02:45.8]} 14.
Rb1 {[%clk 0:02:51.2]} 14... Nxc4 {[%clk 0:02:43.8]} 15. Qxc4 {[%clk 0:02:51.8]}
15... b6 {[%clk 0:02:44.3]} 16. Be3 {[%clk 0:02:48.3]} 16... Bxe3 {[%clk
0:02:41.3]} 17. fxe3 {[%clk 0:02:48.7]} 17... Qe6 {[%clk 0:02:40.2]} 18. Qxe6
{[%clk 0:02:48.6]} 18... fxe6 {[%clk 0:02:40.6]} 19. e4 {[%clk 0:02:45]} 19...
Rf4 {[%clk 0:02:29]} 20. c4 {[%clk 0:02:42.6]} 20... Raf8 {[%clk 0:02:27.8]} 21.
a4 {[%clk 0:02:34.3]} 21... Rxf1+ {[%clk 0:02:24.8]} 22. Rxf1 {[%clk 0:02:34.6]}
22... Rxf1+ {[%clk 0:02:25.1]} 23. Kxf1 {[%clk 0:02:36.5]} 23... Kf7 {[%clk
0:02:22.2]} 24. Ke2 {[%clk 0:02:37]} 24... Ke7 {[%clk 0:02:13.8]} 25. Kd2 {[%clk
0:02:33.2]} 25... Kd6 {[%clk 0:02:13.5]} 26. c3 {[%clk 0:02:25.4]} 26... Kc5
{[%clk 0:01:56.5]} 27. Kc2 {[%clk 0:02:25.2]} 27... c6 {[%clk 0:01:34.3]} 28.
Kb3 {[%clk 0:02:19.5]} 28... a6 {[%clk 0:01:21.5]} 29. g3 {[%clk 0:02:06.6]}
29... b5 {[%clk 0:01:09.6]} 30. cxb5 {[%clk 0:01:40.3]} 30... cxb5 {[%clk
0:01:09.3]} 31. a5 {[%clk 0:01:31.7]} 31... Kd6 {[%clk 0:00:46.8]} 32. Kb4
{[%clk 0:01:27.5]} 32... Kc6 {[%clk 0:00:44.6]} 33. c4 {[%clk 0:01:21.7]} 33...
bxc4 {[%clk 0:00:43.8]} 34. Kxc4 {[%clk 0:01:11.6]} 34... Kd6 {[%clk 0:00:33.6]}
35. Kb4 {[%clk 0:00:57.3]} 35... Kc6 {[%clk 0:00:33.8]} 36. Kc4 {[%clk
0:00:58.1]} 36... Kd6 {[%clk 0:00:34.7]} 37. Kb4 {[%clk 0:00:58.6]} 37... Kc6
{[%clk 0:00:35]} 38. Kc4 {[%clk 0:00:59.1]} 1/2-1/2

[Event "*** Titled Tuesday Blitz"]
[Site "Chess.com"]
[Date "2020.02.04"]
[Round "4"]
[White "kosya4ok"]
[Black "joppie2"]
[Result "1-0"]
[WhiteElo "2618"]
[BlackElo "2887"]
[TimeControl "180+2"]
[EndTime "13:49:39 PST"]
[Termination "kosya4ok won by checkmate"]

1. e4 {[%clk 0:03:01.9]} 1... d5 {[%clk 0:02:57.8]} 2. exd5 {[%clk 0:03:02.4]}
2... Qxd5 {[%clk 0:02:59.7]} 3. Nc3 {[%clk 0:03:03.8]} 3... Qe5+ {[%clk
0:03:00.9]} 4. Be2 {[%clk 0:02:59.1]} 4... Bg4 {[%clk 0:03:00.8]} 5. d4 {[%clk
0:02:57]} 5... Bxe2 {[%clk 0:03:01.5]} 6. Ngxe2 {[%clk 0:02:53.8]} 6... Qa5
{[%clk 0:03:02.8]} 7. b4 {[%clk 0:02:46.2]} 7... Qb6 {[%clk 0:02:56.7]} 8. Nd5
{[%clk 0:02:34]} 8... Qd6 {[%clk 0:02:54.6]} 9. c4 {[%clk 0:02:32.3]} 9... e5
{[%clk 0:02:05.5]} 10. dxe5 {[%clk 0:02:30.3]} 10... Qd8 {[%clk 0:02:06.2]} 11.
Bg5 {[%clk 0:02:12.4]} 11... f6 {[%clk 0:02:02.6]} 12. exf6 {[%clk 0:02:04.5]}
12... gxf6 {[%clk 0:02:04.5]} 13. Bf4 {[%clk 0:01:53.1]} 13... Bd6 {[%clk
0:02:03.7]} 14. Nd4 {[%clk 0:01:47.6]} 14... Bxf4 {[%clk 0:01:56.1]} 15. Qh5+
{[%clk 0:01:46]} 15... Kd7 {[%clk 0:01:55]} 16. Qf5+ {[%clk 0:01:45.7]} 16...
Ke8 {[%clk 0:01:55.8]} 17. Qe6+ {[%clk 0:01:43.2]} 17... Kf8 {[%clk 0:01:54.8]}
18. Qg4 {[%clk 0:00:59.2]} 18... Qd6 {[%clk 0:01:27.7]} 19. Ne6+ {[%clk
0:00:54.6]} 19... Kf7 {[%clk 0:01:27.8]} 20. Nexf4 {[%clk 0:00:48.9]} 20... Qe5+
{[%clk 0:01:23.9]} 21. Kd2 {[%clk 0:00:46.8]} 21... Qd4+ {[%clk 0:01:23.5]} 22.
Kc2 {[%clk 0:00:46.5]} 22... Qxc4+ {[%clk 0:01:20.7]} 23. Kb2 {[%clk 0:00:47.8]}
23... Qd4+ {[%clk 0:01:13.1]} 24. Kb3 {[%clk 0:00:47.9]} 24... Qe4 {[%clk
0:00:58.8]} 25. Rae1 {[%clk 0:00:42.6]} 25... h5 {[%clk 0:01:00.1]} 26. Qc8
{[%clk 0:00:36.3]} 26... Qh7 {[%clk 0:00:49.4]} 27. Qxc7+ {[%clk 0:00:31.5]}
27... Kf8 {[%clk 0:00:46]} 28. Ne6+ {[%clk 0:00:31.8]} 28... Ke8 {[%clk
0:00:47.4]} 29. Ng7+ {[%clk 0:00:26.6]} 29... Kf8 {[%clk 0:00:48]} 30. Re8#
{[%clk 0:00:27.9]} 1-0

[Event "*** Titled Tuesday Blitz"]
[Site "Chess.com"]
[Date "2020.02.04"]
[Round "4"]
[White "vladimirdamjanovic"]
[Black "TwentyHourADay"]
[Result "1-0"]
[WhiteElo "2636"]
[BlackElo "2250"]
[TimeControl "180+2"]
[EndTime "13:49:40 PST"]
[Termination "vladimirdamjanovic won by resignation"]

1. d4 {[%clk 0:03:01.9]} 1... Nf6 {[%clk 0:03:00.6]} 2. c4 {[%clk 0:02:57.7]}
2... e6 {[%clk 0:03:01.2]} 3. Nf3 {[%clk 0:02:57.9]} 3... d5 {[%clk 0:02:58.1]}
4. Nc3 {[%clk 0:02:58.2]} 4... Bb4 {[%clk 0:02:59.1]} 5. cxd5 {[%clk 0:02:57.4]}
5... exd5 {[%clk 0:02:59.8]} 6. Bg5 {[%clk 0:02:58]} 6... h6 {[%clk 0:03:00.2]}
7. Bxf6 {[%clk 0:02:58.7]} 7... Qxf6 {[%clk 0:03:00.9]} 8. Qa4+ {[%clk
0:03:00.3]} 8... Nc6 {[%clk 0:03:01.7]} 9. e3 {[%clk 0:03:01.9]} 9... O-O {[%clk
0:02:58.8]} 10. Be2 {[%clk 0:03:02.5]} 10... Be6 {[%clk 0:02:56.9]} 11. O-O
{[%clk 0:02:58.2]} 11... a6 {[%clk 0:02:57.1]} 12. Rfc1 {[%clk 0:02:58.4]} 12...
Bd6 {[%clk 0:02:56.9]} 13. Qd1 {[%clk 0:02:58.1]} 13... Ne7 {[%clk 0:02:54.9]}
14. a3 {[%clk 0:02:56.2]} 14... Nf5 {[%clk 0:02:47]} 15. Na4 {[%clk 0:02:28.1]}
15... b6 {[%clk 0:02:43.7]} 16. Nc3 {[%clk 0:02:24.2]} 16... Nh4 {[%clk
0:02:28.8]} 17. Nxh4 {[%clk 0:02:22.7]} 17... Qxh4 {[%clk 0:02:29.3]} 18. g3
{[%clk 0:02:24.2]} 18... Qd8 {[%clk 0:02:27.8]} 19. Bf3 {[%clk 0:02:23.8]} 19...
Be7 {[%clk 0:02:16.5]} 20. b4 {[%clk 0:02:21]} 20... Qd6 {[%clk 0:02:08.1]} 21.
Qb3 {[%clk 0:02:17.6]} 21... Rfd8 {[%clk 0:02:07.6]} 22. Ne2 {[%clk 0:02:17.5]}
22... Rac8 {[%clk 0:02:04.6]} 23. Qa4 {[%clk 0:02:09.8]} 23... b5 {[%clk
0:02:02.7]} 24. Qb3 {[%clk 0:02:04.4]} 24... c6 {[%clk 0:02:02.3]} 25. Rc3
{[%clk 0:02:00.6]} 25... Rc7 {[%clk 0:01:58.8]} 26. Rac1 {[%clk 0:01:58.7]}
26... Rdc8 {[%clk 0:01:59.8]} 27. Nf4 {[%clk 0:01:58.7]} 27... g5 {[%clk
0:01:59.6]} 28. Nd3 {[%clk 0:01:59]} 28... Qd8 {[%clk 0:01:56.9]} 29. Nc5 {[%clk
0:01:55.9]} 29... Bxc5 {[%clk 0:01:57.4]} 30. Rxc5 {[%clk 0:01:57.4]} 30... Qd6
{[%clk 0:01:55.8]} 31. Bg2 {[%clk 0:01:57.4]} 31... Kg7 {[%clk 0:01:54.3]} 32.
Qc2 {[%clk 0:01:58.2]} 32... f5 {[%clk 0:01:54.6]} 33. Bf1 {[%clk 0:01:46.8]}
33... f4 {[%clk 0:01:53.1]} 34. exf4 {[%clk 0:01:44.9]} 34... gxf4 {[%clk
0:01:54.2]} 35. a4 {[%clk 0:01:46.5]} 35... fxg3 {[%clk 0:01:54.4]} 36. hxg3
{[%clk 0:01:46.5]} 36... Bf7 {[%clk 0:01:30.3]} 37. axb5 {[%clk 0:01:44.9]}
37... axb5 {[%clk 0:01:32.2]} 38. Bxb5 {[%clk 0:01:40]} 38... Rb8 {[%clk
0:01:33]} 39. Bxc6 {[%clk 0:01:11.3]} 39... Rxb4 {[%clk 0:01:30.5]} 40. Qc3
{[%clk 0:01:06.5]} 40... Rc4 {[%clk 0:01:25.3]} 41. Rxc4 {[%clk 0:01:03.6]}
41... dxc4 {[%clk 0:01:26.3]} 42. d5+ {[%clk 0:00:42.6]} 42... Qf6 {[%clk
0:01:27]} 43. Qxc4 {[%clk 0:00:35.5]} 1-0

[Event "*** Titled Tuesday Blitz"]
[Site "Chess.com"]
[Date "2020.02.04"]
[Round "4"]
[White "lelya96"]
[Black "Snegokhod"]
[Result "0-1"]
[WhiteElo "2462"]
[BlackElo "2634"]
[TimeControl "180+2"]
[EndTime "13:49:43 PST"]
[Termination "Snegokhod won by resignation"]

1. e4 {[%clk 0:03:00.7]} 1... e5 {[%clk 0:02:59.7]} 2. Nf3 {[%clk 0:03:01.4]}
2... f6 {[%clk 0:03:00.6]} 3. d4 {[%clk 0:03:01.7]} 3... d5 {[%clk 0:03:00.3]}
4. Bd3 {[%clk 0:02:31.8]} 4... dxe4 {[%clk 0:02:49.1]} 5. Bxe4 {[%clk
0:02:29.5]} 5... f5 {[%clk 0:02:50.2]} 6. Nxe5 {[%clk 0:02:24.6]} 6... fxe4
{[%clk 0:02:50.6]} 7. Qh5+ {[%clk 0:02:25.3]} 7... g6 {[%clk 0:02:50.8]} 8. Nxg6
{[%clk 0:02:25.1]} 8... Nf6 {[%clk 0:02:51.8]} 9. Qe5+ {[%clk 0:02:25.6]} 9...
Be7 {[%clk 0:02:48]} 10. Nxh8 {[%clk 0:02:21.6]} 10... Nc6 {[%clk 0:02:48.4]}
11. Qg5 {[%clk 0:02:05.1]} 11... Nxd4 {[%clk 0:02:47.3]} 12. O-O {[%clk
0:02:03.3]} 12... Nxc2 {[%clk 0:02:48]} 13. Nc3 {[%clk 0:01:56.2]} 13... Nxa1
{[%clk 0:02:48.8]} 14. Bf4 {[%clk 0:01:47.6]} 14... Nc2 {[%clk 0:02:45.7]} 15.
Rd1 {[%clk 0:01:45.4]} 15... Nd4 {[%clk 0:02:45.6]} 16. Be5 {[%clk 0:01:42.8]}
16... c5 {[%clk 0:01:30.3]} 17. Bxf6 {[%clk 0:00:44.9]} 17... Bxf6 {[%clk
0:01:31.3]} 18. Qg8+ {[%clk 0:00:44.7]} 18... Kd7 {[%clk 0:01:31.1]} 19. Qd5+
{[%clk 0:00:44.3]} 19... Kc7 {[%clk 0:01:16.5]} 20. Qxc5+ {[%clk 0:00:25.6]}
20... Kb8 {[%clk 0:01:17.6]} 21. Nf7 {[%clk 0:00:21.6]} 21... Qc7 {[%clk
0:01:17.6]} 22. Qd5 {[%clk 0:00:16.6]} 22... Be6 {[%clk 0:01:16.1]} 23. Qxe4
{[%clk 0:00:13.1]} 23... Bxf7 {[%clk 0:01:07.4]} 24. Nd5 {[%clk 0:00:14.3]}
24... Bxd5 {[%clk 0:01:04.2]} 25. Qxd5 {[%clk 0:00:15.6]} 25... a6 {[%clk
0:00:59]} 26. h3 {[%clk 0:00:14.4]} 26... Ka7 {[%clk 0:00:59]} 27. Qe4 {[%clk
0:00:13.9]} 27... Rd8 {[%clk 0:00:56.3]} 28. Qe3 {[%clk 0:00:14.8]} 28... Qb6
{[%clk 0:00:57.2]} 29. Rb1 {[%clk 0:00:15.9]} 29... Rd7 {[%clk 0:00:53.8]} 30.
b3 {[%clk 0:00:16.7]} 30... Re7 {[%clk 0:00:54.5]} 31. Qg3 {[%clk 0:00:16.4]}
0-1